bitfinex/quotes_ETHUSD_20250730
["timestamp","ask_amount","ask_price","bid_price","bid_amount"]
[1753850622022,3.1347452,3815.0,3813.7,3.17212549]
[1753850622023,1.2448,3813.8,3813.7,3.17212549]
[1753850622224,1.2448,3813.8,3813.7,7.20712549]
[1753850622440,1.2448,3813.8,3813.7,7.33832549]
[1753850622640,1.7164,3813.8,3813.7,7.33832549]
[1753850622826,0.7807,3814.7,3813.8,3.17205674]
[1753850623142,0.7807,3814.8,3814.1,2.62183946]
[1753850623309,0.7807,3814.8,3814.2,6.17177264]
[1753850623527,0.04,3814.9,3814.4,0.55]
[1753850623528,0.4716,3814.7,3814.4,0.55]
[1753850623722,1.2915,3814.6,3814.5,4.584]
[1753850623954,1.7631,3814.6,3814.5,7.20557556]
[1753850624649,1.7631,3814.6,3814.5,4.584]
[1753850625251,1.7631,3814.6,3814.5,7.20557556]
[1753850626222,1.299,3814.6,3814.5,7.20557556]
[1753850626472,0.4716,3814.6,3814.5,7.20557556]
[1753850626776,0.002,3815.1,3814.8,2.6213694]
[1753850626926,0.002,3815.1,3815.0,6.17123197]
[1753850627131,0.4736,3815.1,3815.0,6.17123197]
[1753850627676,0.002,3815.1,3815.0,6.62103197]
[1753850628166,0.002,3815.1,3815.0,10.93103196]
[1753850628727,0.002,3815.4,3815.3,6.17102586]
[1753850628926,0.002,3815.4,3815.3,10.20402586]
[1753850629328,0.002,3815.4,3815.3,10.65382586]
[1753850630062,0.002,3815.4,3815.3,6.17102586]
[1753850630366,0.002,3815.4,3815.3,10.20402586]
[1753850630727,0.002,3815.4,3815.3,10.65382586]
[1753850631044,0.002,3815.4,3815.3,10.20402586]
[1753850633131,0.002,3815.4,3815.3,10.33522586]
[1753850633326,0.4736,3815.4,3815.3,6.78422586]
[1753850633546,1.7438,3815.4,3815.3,4.1632]
[1753850633760,1.7438,3815.4,3815.3,0.1312]
[1753850634049,1.7438,3815.4,3815.3,4.1622]
[1753850634889,1.7438,3815.4,3815.3,0.1312]
[1753850635249,1.7438,3815.4,3815.3,4.1622]
[1753850636648,1.7438,3815.4,3815.3,0.1312]
[1753850636854,0.8139,3815.3,3815.2,0.1312]
[1753850637056,4.8958452,3815.3,3815.2,0.1312]
[1753850637268,0.8254,3815.2,3815.1,4.031]
[1753850637488,0.9357,3815.2,3815.1,4.031]
[1753850637689,1.7611,3815.2,3815.1,4.031]
[1753850641770,1.7611,3815.2,3815.1,4.1622]
[1753850645301,1.297,3815.2,3815.1,4.1622]
[1753850645694,0.8254,3815.2,3815.1,6.78336327]
[1753850646022,0.8254,3815.2,3815.1,4.1622]
[1753850646222,1.3082,3815.2,3815.1,4.1622]
[1753850646426,1.7619,3815.2,3815.1,4.1622]
[1753850647933,1.3082,3815.2,3815.1,4.1622]
[1753850651581,1.7619,3815.2,3815.1,4.1612]
[1753850651761,1.42656452,3815.2,3814.8,4.03]
[1753850651960,3.9443452,3814.9,3814.8,4.03]
[1753850652291,4.0712452,3814.9,3814.7,4.30999999]
[1753850652442,1.7309,3814.8,3814.7,4.30999999]
[1753850652790,1.7309,3814.8,3814.7,4.31099999]
[1753850654845,1.2772,3814.8,3814.7,0.001]
[1753850655044,1.2772,3814.8,3814.7,0.1322]
[1753850661498,1.7309,3814.8,3814.7,0.1322]
[1753850662904,1.2772,3814.8,3814.7,0.1322]
[1753850664206,0.7944,3814.8,3814.7,2.75363812]
[1753850664412,0.7748,3815.1,3814.7,0.5886]
[1753850664578,0.7748,3815.1,3814.8,4.4864]
[1753850664779,0.7748,3815.1,3815.0,0.1312]
[1753850665104,0.4848,3815.2,3815.0,4.1612]
[1753850665306,0.002,3815.2,3815.0,4.1612]
[1753850665615,0.4848,3815.2,3815.0,4.1612]
[1753850667410,0.4828,3815.1,3815.0,4.1612]
[1753850669898,0.9365,3815.1,3815.0,0.1312]
[1753850670097,0.9365,3815.1,3815.0,4.1602]
[1753850672187,0.002,3815.2,3815.0,4.1602]
[1753850672388,0.4837,3815.1,3815.0,4.1602]
[1753850673212,0.4837,3815.1,3815.0,0.1312]
[1753850673398,0.7964,3815.0,3814.9,4.029]
[1753850673601,4.8485452,3815.0,3814.9,4.029]
[1753850673799,4.8485452,3815.0,3814.8,0.1312]
[1753850674005,0.9174,3814.9,3814.8,0.1312]
[1753850679852,0.002,3815.2,3814.8,0.1312]
[1753850680136,0.002,3815.2,3814.9,0.4657]
[1753850680302,0.002,3815.1,3814.9,0.4657]
[1753850680493,0.002,3815.1,3815.0,0.4657]
[1753850680693,0.002,3815.1,3815.0,0.5969]
[1753850681137,3.1367452,3815.1,3815.0,0.1312]
[1753850681434,3.6204452,3815.1,3815.0,0.1312]
[1753850682143,0.4857,3815.1,3815.0,0.1312]
[1753850682898,0.002,3815.1,3815.0,0.1312]
[1753850683733,0.002,3815.1,3815.0,0.5969]
[1753850684440,0.002,3815.1,3815.0,0.1312]
[1753850684735,0.4857,3815.1,3815.0,0.1312]
[1753850691362,0.9194,3815.1,3814.7,0.001]
[1753850691529,0.9194,3815.1,3814.9,0.1312]
[1753850691867,0.68303363,3815.1,3814.9,0.1312]
[1753850692036,0.4337,3815.0,3814.9,0.1312]
[1753850692366,0.9174,3815.0,3814.9,0.1312]
[1753850692535,0.4837,3815.0,3814.9,0.1312]
[1753850692941,0.002,3815.1,3814.9,0.1312]
[1753850693131,0.4837,3815.0,3814.9,0.1312]
[1753850695367,1.732,3815.0,3814.7,0.001]
[1753850695566,3.1347452,3814.8,3814.7,0.001]
[1753850695957,3.6184452,3814.8,3814.7,0.1322]
[1753850700819,3.1347452,3814.8,3814.7,0.1322]
[1753850701011,3.1347452,3814.8,3814.7,0.588]
[1753850702357,3.1347452,3814.8,3814.7,0.1322]
[1753850702886,3.1347452,3814.8,3814.7,0.588]
[1753850703592,3.1347452,3814.8,3814.7,0.1322]
[1753850703791,3.6214452,3814.8,3814.7,0.1322]
[1753850705888,3.6234452,3815.1,3814.7,0.588]
[1753850706062,0.4867,3815.0,3814.7,0.588]
[1753850706259,0.002,3815.1,3814.7,0.1322]
[1753850706598,0.002,3815.1,3814.9,0.1312]
[1753850706759,0.002,3815.1,3814.9,4.1572]
[1753850706960,3.1367452,3815.1,3814.9,4.1572]
[1753850707162,3.6234452,3815.1,3814.9,4.1572]
[1753850707388,0.4867,3815.0,3814.9,4.1572]
[1753850709086,3.1367452,3815.1,3814.9,4.1572]
[1753850709289,3.1367452,3815.1,3814.9,4.613]
[1753850709886,3.1367452,3815.1,3815.0,0.4558]
[1753850711089,3.1367452,3815.1,3814.9,4.1572]
[1753850711268,3.6234452,3815.1,3814.9,4.1572]
[1753850711469,3.6234452,3815.1,3814.9,4.613]
[1753850714415,3.1367452,3815.1,3815.0,0.4558]
[1753850716129,3.6234452,3815.1,3814.9,4.1572]
[1753850716333,0.4867,3815.0,3814.9,4.1572]
[1753850716532,0.4867,3815.0,3814.9,4.1562]
[1753850716689,0.9208,3815.0,3814.9,4.1562]
[1753850716891,0.9208,3815.0,3814.7,0.001]
[1753850716892,0.7629,3814.9,3814.7,4.026]
[1753850717116,3.1347452,3814.8,3814.7,4.026]
[1753850717426,3.1347452,3814.8,3814.5,0.001]
[1753850717427,5.62150684,3814.6,3814.5,0.001]
[1753850717582,12.06145204,3814.6,3814.5,0.001]
[1753850717786,13.11345204,3814.6,3814.5,0.001]
[1753850718688,13.2461428,3814.6,3814.5,0.001]
[1753850720482,13.11345204,3814.6,3814.5,0.001]
[1753850720690,10.4919452,3814.6,3814.5,0.001]
[1753850721021,8.4666,3814.6,3814.5,0.001]
[1753850721203,1.3104,3814.6,3814.5,0.001]
[1753850723802,1.7445,3814.6,3814.5,0.001]
[1753850724005,7.36600684,3814.6,3814.5,0.001]
[1753850724205,7.49720684,3814.6,3814.5,0.001]
[1753850724405,9.22503911,3814.6,3814.5,0.001]
[1753850727761,2.62178176,3814.2,3814.1,0.001]
[1753850727923,12.78052696,3814.2,3814.1,0.001]
[1753850728110,13.83252696,3814.2,3814.1,0.001]
[1753850728624,13.83252696,3814.2,3813.0,0.1312]
[1753850728625,0.7541,3813.6,3813.0,0.1312]
[1753850728838,3.1347452,3813.2,3813.0,0.1312]
[1753850729560,7.50511451,3813.2,3812.4,4.024]
[1753850729764,7.07101451,3813.2,3812.8,0.1312]
[1753850731315,11.09501451,3813.2,3812.7,0.1312]
[1753850731519,12.91367085,3813.2,3811.9,10.325]
[1753850731746,15.91367085,3813.2,3812.3,0.1312]
[1753850731944,3.1347452,3812.6,3811.7,2.62344847]
[1753850732117,3.40137565,3812.9,3812.4,0.4379]
[1753850732118,4.024,3812.7,3812.4,0.4379]
[1753850732322,7.024,3812.8,3812.5,0.4379]
[1753850732537,3.1347452,3812.6,3812.3,0.1312]
[1753850732854,5.7576467,3812.6,3812.1,0.1712]
[1753850733067,3.53295995,3812.5,3812.1,0.04]
[1753850733264,3.1347452,3812.3,3812.1,0.04]
[1753850733420,3.9212452,3812.3,3812.1,0.04]
[1753850733624,3.54798175,3812.2,3812.1,0.04]
[1753850734065,0.92482452,3812.2,3812.1,0.04]
[1753850734852,0.44862452,3812.2,3812.1,0.04]
[1753850736973,0.92482452,3812.2,3812.1,0.04]
[1753850738279,7.57298175,3812.2,3812.1,0.04]
[1753850739249,4.94982452,3812.2,3812.1,0.04]
[1753850741436,7.57298175,3812.2,3812.1,0.04]
[1753850741669,4.94982452,3812.2,3812.1,0.04]
[1753850741967,7.57298175,3812.2,3812.1,0.04]
[1753850742775,13.70772695,3812.2,3812.1,0.04]
[1753850742946,14.27272695,3812.2,3812.1,0.04]
[1753850743146,15.05072695,3812.2,3812.1,0.04]
[1753850744780,15.05072695,3812.2,3812.1,0.041]
[1753850748773,14.14072695,3812.2,3812.1,0.041]
[1753850748981,14.61692695,3812.2,3812.1,0.041]
[1753850749379,4.1562,3812.2,3812.1,0.041]
[1753850749559,4.1562,3812.2,3812.1,0.4789]
[1753850750373,10.2909452,3812.2,3812.1,0.4789]
[1753850752044,10.1597452,3812.2,3812.1,0.4789]
[1753850752440,7.025,3812.2,3812.1,0.4789]
[1753850752758,7.025,3812.2,3812.1,1.0529]
[1753850753349,7.025,3812.2,3812.1,0.6101]
[1753850753873,3.0,3812.2,3812.1,0.6101]
[1753850754059,7.025,3812.2,3812.1,0.1722]
[1753850754572,7.5012,3812.2,3812.1,0.1722]
[1753850755380,7.5012,3812.2,3812.1,0.041]
[1753850756087,7.025,3812.2,3812.1,0.041]
[1753850756583,7.5012,3812.2,3812.1,0.041]
[1753850756746,11.57521155,3812.2,3812.1,0.041]
[1753850756946,12.14021155,3812.2,3812.1,0.041]
[1753850760547,8.60705432,3812.2,3812.1,0.041]
[1753850760752,7.1552,3812.2,3812.1,0.041]
[1753850761289,9.77835723,3812.2,3812.1,0.041]
[1753850761453,7.1552,3812.2,3812.1,0.041]
[1753850762155,9.77835723,3812.2,3812.1,0.041]
[1753850762570,7.1552,3812.2,3812.1,0.041]
[1753850762891,9.77835723,3812.2,3812.1,0.041]
[1753850763261,10.55766438,3812.2,3812.1,0.041]
[1753850763460,7.93450715,3812.2,3812.1,0.041]
[1753850763657,7.024,3812.2,3812.1,0.4783]
[1753850763857,3.10994804,3812.8,3812.1,0.4783]
[1753850764062,3.0,3812.6,3812.2,1.1783]
[1753850764273,4.024,3812.5,3812.3,1.0113]
[1753850764457,4.024,3812.5,3812.4,0.4373]
[1753850764657,7.024,3812.5,3812.4,0.4373]
[1753850765393,3.24115737,3812.8,3812.3,0.1312]
[1753850765394,0.1312,3812.8,3812.3,0.1312]
[1753850765597,3.0,3812.8,3812.4,0.4373]
[1753850765784,3.0,3812.8,3812.3,0.1312]
[1753850765983,6.77688443,3812.9,3812.5,0.4373]
[1753850765984,3.0,3812.6,3812.5,0.4373]
[1753850766186,3.0,3812.6,3812.4,0.4428]
[1753850766883,3.0,3812.6,3812.5,0.4373]
[1753850767069,6.6219452,3812.6,3812.3,0.1312]
[1753850767391,6.6219452,3812.6,3812.3,0.5685]
[1753850768088,0.4872,3812.5,3812.3,0.1312]
[1753850768583,0.4872,3812.4,3812.3,0.1312]
[1753850769012,0.4872,3812.4,3812.1,0.041]
[1753850769361,4.8603452,3812.3,3812.1,0.041]
[1753850769596,9.77735723,3812.2,3812.1,0.041]
[1753850769794,11.24112747,3812.2,3812.1,0.041]
[1753850770117,12.16212747,3812.2,3812.1,0.041]
[1753850775665,5.62343249,3811.8,3811.7,0.001]
[1753850775870,13.67947769,3811.8,3811.7,0.001]
[1753850776288,14.60047769,3811.8,3811.7,0.001]
[1753850776492,16.32286008,3811.8,3811.7,0.001]
[1753850777867,16.45390812,3811.8,3811.7,0.001]
[1753850778268,16.32286008,3811.8,3811.7,0.001]
[1753850778488,15.88906008,3811.8,3811.7,0.001]
[1753850778901,12.26711488,3811.8,3811.7,0.001]
[1753850779107,11.49901488,3811.8,3811.7,0.001]
[1753850779310,3.1312,3811.8,3811.7,0.001]
[1753850779484,7.1532,3811.8,3811.7,0.4383]
[1753850780179,10.26383249,3811.8,3811.7,0.001]
[1753850780801,7.1532,3811.8,3811.7,0.001]
[1753850780968,9.77663249,3811.8,3811.7,0.001]
[1753850781407,10.26383249,3811.8,3811.7,0.001]
[1753850781600,9.77663249,3811.8,3811.7,0.001]
[1753850782211,3.1312,3811.8,3811.7,0.001]
[1753850782429,0.1312,3811.8,3811.7,0.001]
[1753850782721,4.022,3812.0,3811.7,1.6166]
[1753850782879,4.022,3812.0,3811.7,0.7365]
[1753850783085,4.022,3812.0,3811.8,0.8801]
[1753850783399,4.022,3812.0,3811.8,0.4428]
[1753850783576,4.022,3812.0,3811.9,0.4373]
[1753850783778,4.022,3812.0,3811.7,0.001]
[1753850783993,3.1347452,3811.8,3811.7,0.001]
[1753850784190,5.75817769,3811.8,3811.7,0.001]
[1753850784403,14.03677769,3811.8,3811.7,0.001]
[1753850784742,14.47057769,3811.8,3811.7,0.001]
[1753850786282,14.03677769,3811.8,3811.7,0.001]
[1753850786488,15.84501863,3811.8,3811.7,0.001]
[1753850786885,8.83024094,3811.8,3811.7,0.001]
[1753850787277,8.83024094,3811.8,3811.7,0.4383]
[1753850787479,7.022,3811.8,3811.7,0.4383]
[1753850787977,3.0,3811.8,3811.7,0.4383]
[1753850788196,7.022,3811.8,3811.7,0.8811]
[1753850788578,3.0,3811.8,3811.7,0.8811]
[1753850789277,0.1332,3812.1,3812.0,2.62329485]
[1753850789278,0.002,3812.1,3812.0,2.62329485]
[1753850789476,0.002,3812.1,3812.0,4.23889485]
[1753850789677,0.002,3812.1,3812.0,4.92009485]
[1753850789907,0.002,3812.1,3812.0,2.2968]
[1753850790113,0.002,3812.1,3812.0,1.304]
[1753850790428,0.002,3812.1,3812.0,0.8667]
[1753850790592,3.6317452,3812.1,3811.7,0.7365]
[1753850790788,0.495,3812.0,3811.7,0.001]
[1753850790979,1.0721,3812.0,3811.7,0.001]
[1753850791184,1.28609038,3812.0,3811.7,0.001]
[1753850791382,0.1312,3812.0,3811.7,0.001]
[1753850791625,0.1312,3812.0,3811.8,0.4609]
[1753850792476,4.023,3812.1,3811.9,0.4609]
[1753850792682,4.518,3812.1,3811.7,0.1322]
[1753850793014,0.495,3812.0,3811.7,0.1322]
[1753850793493,0.495,3812.0,3811.7,0.5931]
[1753850794219,0.495,3812.0,3811.7,0.001]
[1753850794410,1.0721,3812.0,3811.7,0.001]
[1753850794715,0.495,3811.9,3811.7,0.001]
[1753850796468,0.1312,3812.0,3811.7,0.001]
[1753850796937,4.023,3812.1,3811.8,0.4609]
[1753850797287,4.518,3812.1,3811.8,0.4609]
[1753850797499,4.023,3812.1,3811.7,0.001]
[1753850797716,0.495,3812.0,3811.7,0.001]
[1753850798125,4.023,3812.1,3811.7,0.001]
[1753850798332,0.495,3812.0,3811.7,0.001]
[1753850799340,4.023,3812.1,3811.8,0.4609]
[1753850799542,4.023,3812.1,3811.7,0.4438]
[1753850799722,4.023,3812.1,3811.9,0.4609]
[1753850800146,4.518,3812.1,3811.9,0.4609]
[1753850800440,4.518,3812.1,3811.7,0.001]
[1753850800645,0.495,3812.0,3811.7,0.4619]
[1753850800847,0.9409,3811.9,3811.7,0.001]
[1753850801065,0.1312,3811.8,3811.7,0.001]
[1753850801450,1.0721,3811.8,3811.7,0.001]
[1753850802060,3.69553249,3811.8,3811.7,0.001]
[1753850802217,5.38838759,3811.8,3811.7,0.001]
[1753850802813,2.7649551,3811.8,3811.7,0.001]
[1753850803060,1.02723597,3812.0,3811.7,0.001]
[1753850803061,3.65053859,3812.0,3811.7,0.001]
[1753850803256,4.021,3811.9,3811.7,0.001]
[1753850803416,0.495,3811.8,3811.7,0.001]
[1753850804157,4.021,3811.9,3811.7,0.001]
[1753850804544,4.516,3811.9,3811.7,0.001]
[1753850805187,0.1312,3812.0,3811.7,0.001]
[1753850805353,4.02,3812.0,3811.8,0.4609]
[1753850805560,4.02,3812.0,3811.9,0.4609]
[1753850806081,4.02,3812.0,3811.7,0.001]
[1753850806285,4.02,3812.0,3811.7,0.4619]
[1753850807058,4.515,3812.0,3811.7,0.4619]
[1753850807684,0.495,3812.0,3811.7,0.4619]
[1753850807882,0.002,3812.1,3811.7,0.4619]
[1753850807883,4.022,3812.1,3811.8,0.4609]
[1753850808186,4.517,3812.1,3811.8,0.4609]
[1753850808492,0.495,3812.0,3811.7,0.001]
[1753850809284,4.022,3812.1,3811.8,0.4609]
[1753850809481,4.022,3812.1,3811.7,0.001]
[1753850809643,0.497,3812.1,3811.7,0.4619]
[1753850809844,0.495,3812.0,3811.7,0.4619]
[1753850810587,0.495,3811.9,3811.7,0.4619]
[1753850810767,0.495,3811.9,3811.7,0.001]
[1753850811173,0.495,3811.8,3811.7,0.001]
[1753850811485,4.51503249,3811.8,3811.7,0.001]
[1753850811715,1.8916,3811.8,3811.7,0.001]
[1753850812020,1.4457,3811.8,3811.7,0.001]
[1753850812197,0.495,3811.9,3811.7,0.001]
[1753850812720,4.02,3812.0,3811.7,0.001]
[1753850812871,4.02,3812.0,3811.7,0.4619]
[1753850813512,4.02,3812.0,3811.8,0.4609]
[1753850814512,4.515,3812.0,3811.7,0.001]
[1753850816015,4.515,3812.0,3811.7,0.4619]
[1753850816415,0.002,3812.1,3811.8,0.4609]
[1753850816723,0.002,3812.1,3812.0,3.90879485]
[1753850817077,0.002,3812.1,3812.0,4.81249485]
[1753850817687,0.002,3812.1,3812.0,1.1964]
[1753850817883,0.002,3812.1,3812.0,4.26249485]
[1753850818292,0.002,3812.1,3812.0,4.28872779]
[1753850818910,0.002,3812.1,3812.0,4.81249485]
[1753850819506,0.002,3812.1,3812.0,5.2154]
[1753850820321,0.002,3812.1,3812.0,5.1984]
[1753850821121,0.002,3812.1,3812.0,1.1794]
[1753850821726,0.002,3812.1,3812.0,0.7355]
[1753850821930,0.4716,3812.1,3811.9,0.1312]
[1753850822221,0.4696,3812.0,3811.9,0.1312]
[1753850822840,0.002,3812.1,3811.9,0.1312]
[1753850823029,0.002,3812.1,3811.9,0.5751]
[1753850823189,0.002,3812.1,3811.9,0.1312]
[1753850823395,0.4696,3812.0,3811.9,0.1312]
[1753850829346,3.89950873,3812.0,3811.7,0.001]
[1753850829515,3.37647568,3811.9,3811.7,0.001]
[1753850829855,4.29797568,3811.9,3811.7,0.001]
[1753850830024,0.9215,3811.8,3811.7,0.001]
[1753850831327,0.4696,3811.8,3811.7,0.001]
[1753850833256,3.82548466,3811.8,3811.7,0.001]
[1753850833635,3.95668466,3811.8,3811.7,0.001]
[1753850834934,4.75888466,3811.8,3811.7,0.001]
[1753850842773,4.95298235,3811.8,3811.7,0.001]
[1753850843272,1.21395217,3811.8,3811.7,0.001]
[1753850843476,4.018,3811.8,3811.7,0.4449]
[1753850843786,4.018,3811.8,3811.7,0.001]
[1753850843997,4.4876,3811.8,3811.7,0.001]
[1753850845798,7.11103249,3811.8,3811.7,0.001]
[1753850845997,8.19631834,3811.8,3811.7,0.001]
[1753850846994,5.57288585,3811.8,3811.7,0.001]
[1753850847452,8.19631834,3811.8,3811.7,0.001]
[1753850849217,8.64821834,3811.8,3811.7,0.001]
[1753850849428,11.19631834,3811.8,3811.7,0.001]
[1753850849591,17.23407585,3811.8,3811.7,0.001]
[1753850854835,15.6094184,3811.8,3811.7,0.001]
[1753850858802,3.41902324,3811.6,3811.3,0.001]
[1753850859024,3.12880006,3811.4,3811.3,0.001]
[1753850859246,5.88370788,3811.4,3811.3,0.001]
[1753850859739,6.81110788,3811.4,3811.3,0.001]
[1753850859944,7.58400788,3811.4,3811.3,0.001]
[1753850860120,9.49021029,3811.4,3811.3,0.001]
[1753850862959,12.03621029,3811.4,3811.3,0.001]
[1753850863170,6.53114556,3811.2,3810.3,0.4286]
[1753850863457,10.67934556,3811.2,3810.3,0.4286]
[1753850863625,11.60674556,3811.2,3810.3,0.4286]
[1753850863832,13.52041114,3811.2,3810.3,0.4286]
[1753850864385,13.06641114,3811.2,3810.6,0.4276]
[1753850864948,13.06641114,3811.2,3810.7,0.4276]
[1753850866292,13.52041114,3811.2,3810.5,0.4276]
[1753850867705,16.52041114,3811.2,3810.5,0.4276]
[1753850869622,16.52041114,3811.2,3810.3,0.001]
[1753850870303,8.75319644,3810.4,3810.3,0.001]
[1753850870505,12.90139644,3810.4,3810.3,0.001]
[1753850870875,12.90139644,3810.4,3810.3,0.4286]
[1753850871330,9.77259638,3810.4,3810.3,0.001]
[1753850871621,12.90139644,3810.4,3810.3,0.4286]
[1753850872895,0.4828,3811.1,3810.3,0.4286]
[1753850872896,1.91366558,3811.2,3810.3,1.6069]
[1753850873095,3.1312,3810.8,3810.4,0.8704]
[1753850873290,7.1482,3810.8,3810.5,0.8704]
[1753850873510,7.017,3810.8,3810.6,0.8704]
[1753850873708,7.017,3810.8,3810.3,0.8677]
[1753850874022,7.017,3810.8,3810.7,0.8704]
[1753850874402,9.64112091,3810.8,3810.7,0.4276]
[1753850877700,5.62418978,3810.7,3810.6,0.001]
[1753850877921,5.75538978,3810.7,3810.6,0.001]
[1753850878234,6.22878978,3810.7,3810.6,0.001]
[1753850878436,7.82865823,3810.7,3810.6,0.001]
[1753850878641,9.08985823,3810.7,3810.6,0.001]
[1753850880543,8.63585823,3810.7,3810.6,0.001]
[1753850883163,9.06855823,3810.7,3810.6,0.001]
[1753850884361,3.44139638,3810.4,3810.3,0.001]
[1753850884520,10.58619644,3810.4,3810.3,0.001]
[1753850884720,2.62453414,3810.2,3810.1,0.04]
[1753850884906,9.77173414,3810.2,3810.1,0.04]
[1753850885106,11.4491972,3810.2,3810.1,0.04]
[1753850885306,12.3451972,3810.2,3810.1,0.04]
[1753850886032,12.3451972,3810.2,3809.9,1e-08]
[1753850886033,2.62467191,3810.0,3809.9,1e-08]
[1753850886234,5.62487859,3809.7,3809.6,0.001]
[1753850886438,12.90087865,3809.7,3809.6,0.001]
[1753850886619,13.79687865,3809.7,3809.6,0.001]
[1753850890050,13.99587187,3809.7,3809.6,0.001]
[1753850890252,16.23046004,3809.7,3809.6,0.001]
[1753850890434,9.97207181,3809.7,3809.6,0.4327]
[1753850891463,4.28388614,3810.2,3809.6,0.4327]
[1753850891464,2.62459158,3810.2,3809.6,0.4327]
[1753850891665,0.1312,3809.8,3809.7,0.7355]
[1753850891865,6.12880006,3809.8,3809.7,0.4317]
[1753850892033,8.75360976,3809.8,3809.7,0.4317]
[1753850892440,2.62487859,3809.7,3809.6,0.001]
[1753850892679,2.75607859,3809.7,3809.6,0.001]
[1753850892875,0.1312,3809.7,3809.6,0.4327]
[1753850893390,2.75607859,3809.7,3809.6,0.4327]
[1753850893555,0.1312,3809.7,3809.6,0.4327]
[1753850895418,2.75607859,3809.7,3809.6,0.4327]
[1753850895718,7.81837092,3809.7,3809.6,0.001]
[1753850904172,8.25107092,3809.7,3809.6,0.001]
[1753850905827,9.01067092,3809.7,3809.6,0.001]
[1753850906647,9.11589192,3809.7,3809.6,0.001]
[1753850908450,9.11589192,3809.7,3809.6,1e-08]
[1753850911098,2.62515422,3809.3,3809.2,0.001]
[1753850911300,5.62522314,3809.2,3809.1,0.04]
[1753850911533,6.55442314,3809.2,3809.1,0.04]
[1753850912651,6.93282314,3809.2,3809.1,0.04]
[1753850913448,7.36972314,3809.2,3809.1,0.04]
[1753850913646,9.41556931,3809.2,3809.1,0.04]
[1753850914293,8.97866931,3809.2,3809.1,0.04]
[1753850914565,9.43596931,3809.2,3809.1,0.04]
[1753850914864,5.48636931,3809.2,3809.1,0.4973]
[1753850915226,7.67106931,3809.2,3809.1,0.04]
[1753850915665,8.16336931,3809.2,3809.1,0.04]
[1753850916462,7.67106931,3809.2,3809.1,0.04]
[1753850916671,8.98506931,3809.2,3809.1,0.04]
[1753850917237,38.98506931,3809.2,3809.1,0.04]
[1753850917467,9.42196931,3809.2,3809.1,0.04]
[1753850917969,39.42196931,3809.2,3809.1,0.04]
[1753850918131,9.42196931,3809.2,3809.1,0.04]
[1753850918464,39.42196931,3809.2,3809.1,0.04]
[1753850918859,9.46886931,3809.2,3809.1,0.04]
[1753850919560,9.90576931,3809.2,3809.1,0.04]
[1753850921530,9.90576931,3809.2,3809.1,0.041]
[1753850927074,9.46886931,3809.2,3809.1,0.041]
[1753850927573,9.90576931,3809.2,3809.1,0.041]
[1753850927961,9.46886931,3809.2,3809.1,0.041]
[1753850931353,9.42196931,3809.2,3809.1,0.041]
[1753850932003,8.98506931,3809.2,3809.1,0.041]
[1753850932193,9.42196931,3809.2,3809.1,1e-08]
[1753850932549,39.42196931,3809.2,3809.1,1e-08]
[1753850933248,8.98506931,3809.2,3809.1,1e-08]
[1753850936594,11.68506931,3809.2,3809.1,1e-08]
[1753850936794,11.68506931,3809.2,3809.1,0.45730001]
[1753850937664,5.62522314,3809.2,3809.1,0.45730001]
[1753850937865,9.63922314,3809.2,3809.1,0.90010001]
[1753850939203,9.63922314,3809.2,3809.1,0.45730001]
[1753850942816,0.1312,3809.3,3809.1,0.90010001]
[1753850942978,2.75637763,3809.3,3809.2,0.894]
[1753850943179,6.77037763,3809.3,3809.2,0.894]
[1753850943390,9.77037763,3809.3,3809.2,0.894]
[1753850943625,4.1452,3809.3,3809.2,0.894]
[1753850943827,7.1452,3809.3,3809.2,0.894]
[1753850944596,7.014,3809.3,3809.2,0.894]
[1753850944798,0.002,3809.6,3809.3,0.7355]
[1753850945019,4.013,3809.5,3809.3,1.6295]
[1753850945327,0.002,3809.6,3809.4,0.894]
[1753850945710,0.002,3809.6,3809.5,0.894]
[1753850948315,0.002,3809.6,3809.5,1.6295]
[1753850948514,0.002,3809.6,3809.5,1.7607]
[1753850955451,0.002,3809.6,3809.5,0.8667]
[1753850955611,3.60030006,3809.6,3809.5,0.7355]
[1753850956913,3.13080006,3809.6,3809.5,0.7355]
[1753850957338,5.75574756,3809.6,3809.3,0.5824]
[1753850957539,6.22524756,3809.6,3809.3,1.3179]
[1753850958828,3.60030006,3809.6,3809.3,1.3179]
[1753850959024,6.22527629,3809.6,3809.3,1.3179]
[1753850959735,0.1312,3809.4,3809.1,1e-08]
[1753850959923,0.1332,3809.6,3809.4,0.4512]
[1753850960124,0.1332,3809.6,3809.1,1e-08]
[1753850960326,2.62508531,3809.4,3809.1,1e-08]
[1753850960533,2.62522314,3809.2,3809.1,1e-08]
[1753850960924,2.62522314,3809.2,3809.1,0.45120001]
[1753850961433,3.09472314,3809.2,3809.1,1e-08]
[1753850961823,4.5700265,3809.2,3809.1,1e-08]
[1753850962028,8.0202265,3809.2,3809.1,1e-08]
[1753850964130,3.1312,3809.2,3809.1,1e-08]
[1753850964342,5.75642314,3809.2,3809.1,0.45120001]
[1753850964542,6.76742314,3809.2,3809.1,0.45120001]
[1753850965420,4.1442,3809.2,3809.1,0.45120001]